fUSD/lending_fUSD_20251110
["ID","MTS","AMOUNT","RATE_DAILY","PERIOD"]
[393547538,1762791050965,-300.0,0.00029595,2]
[393547539,1762791050975,-300.0,0.00029602,2]
[393547540,1762791050985,-300.0,0.00029618,2]
[393547541,1762791050994,-300.0,0.00029622,2]
[393547542,1762791051005,-300.0,0.00029623,2]
[393547543,1762791051014,-300.0,0.00029623,2]
[393547544,1762791051024,-300.0,0.00029657,2]
[393547545,1762791051034,-300.0,0.00029671,2]
[393547546,1762791051045,-149.55229338,0.00029675,2]
[393547547,1762791051058,-150.44770662,0.00029675,2]
[393547548,1762791051067,-300.0,0.00029746,2]
[393547549,1762791051076,-203.07729218,0.00029761,2]
[393547550,1762791051113,-96.92270782,0.00029761,2]
[393547551,1762791051122,-300.0,0.00029809,2]
[393547552,1762791051132,-241.62729533,0.00029822,2]
[393547553,1762791062975,300.0,0.00020306,120]
[393547554,1762791063122,445.37791582,0.00024141,120]
[393547555,1762791089376,4512.58,0.00015002,2]
[393547556,1762791089401,1054.08,0.00015002,2]
[393547557,1762791089765,5566.66,0.0001576,2]
[393547558,1762791089821,3379.27,0.00016519,2]
[393547559,1762791089847,2187.39,0.00016519,2]
[393547560,1762791090060,5566.66,0.00017278,2]
[393547561,1762791273143,250.0,0.00017,2]
[393547562,1762791370132,233.97,0.00026986,120]
[393547568,1762791503450,1995.96,0.00017995,2]
[393547569,1762791503477,376.3,0.00017995,2]
[393547570,1762791558440,653.58,0.00017995,2]
[393547571,1762791589527,4737.51,0.00017995,2]
[393547573,1762791709817,508.85013673,0.00029941,120]
[393547575,1762791788582,233.97,0.00026986,120]
[393547577,1762791816362,1000.0,0.00030137,120]
[393547579,1762791851050,260.9171715,0.00029941,120]
[393547581,1762791861587,1000.0,0.00030137,120]
[393547582,1762791865944,668.0,0.0003013,120]
[393547583,1762791868358,285.0,0.0003013,120]
[393547584,1762791869153,478.0,0.0003013,120]
[393547585,1762791869972,215.0,0.0003013,120]
[393547586,1762791871052,491.0,0.0003013,120]
[393547587,1762791871592,378.0,0.0003013,120]
[393547588,1762791872410,221.0,0.0003013,120]
[393547589,1762791873232,211.0,0.0003013,120]
[393547590,1762791874021,444.0,0.0003013,120]
[393547591,1762791874905,468.0,0.0003013,120]
[393547592,1762791875741,389.0,0.0003013,120]
[393547593,1762791876581,168.0,0.0003013,120]
[393547594,1762791877380,258.0,0.0003013,120]
[393547595,1762791881447,354.0,0.0003013,120]
[393547596,1762791882224,230.0,0.0003013,120]
[393547597,1762791883055,298.0,0.0003013,120]
[393547598,1762791883830,151.0,0.0003013,120]
[393547599,1762791884630,378.0,0.0003013,120]
[393547600,1762791885438,330.0,0.0003013,120]
[393547601,1762791886238,268.0,0.0003013,120]
[393547602,1762791887052,358.0,0.0003013,120]
[393547603,1762791900460,-195.0,0.00018024,2]
[393547604,1762791900484,-445.37791582,0.00018024,2]
[393547605,1762791900508,-300.0,0.00018024,2]
[393547606,1762791900532,-195.0,0.00018024,2]
[393547607,1762791900555,-300.0,0.00018028,2]
[393547608,1762791900580,-300.0,0.00018028,2]
[393547609,1762791900606,-195.0,0.00018028,2]
[393547610,1762791900630,-5566.66,0.00018036,2]
[393547611,1762791900653,-161.45167711,0.0001804,2]
[393547612,1762791900678,-5566.66,0.00018795,2]
[393547613,1762791900701,-173.38,0.0001937,2]
[393547614,1762791900743,-5566.66,0.00019553,2]
[393547615,1762791900792,-250.0,0.00019826,2]
[393547616,1762791900838,-300.0,0.00019826,2]
[393547617,1762791900886,-250.0,0.00019826,2]
[393547618,1762791900934,-300.0,0.00019826,2]
[393547619,1762791900975,-195.0,0.00019826,2]
[393547620,1762791901014,-300.0,0.00019826,2]
[393547621,1762791901056,-195.0,0.00019826,2]
[393547622,1762791901093,-200.0,0.00019826,2]
[393547623,1762791901132,-248.5375885,0.00019826,2]
[393547624,1762791901173,-292.0233172,0.00019826,2]
[393547625,1762791901213,-150.09578015,0.00019826,2]
[393547626,1762791901252,-151.0,0.00019982,2]
[393547627,1762791901292,-151.0,0.00019989,2]
[393547628,1762791901328,-151.0,0.00019993,2]
[393547629,1762791901639,151.0,0.00019965,2]
[393547630,1762791903800,246.27,0.0003013,120]
[393547631,1762791904720,300.0,0.00019979,2]
[393547632,1762791906653,736.0,0.00030112,120]
[393547633,1762791908307,74186.15372122,0.00018,2]
[393547634,1762791918492,-6758.81602302,0.000154,2]
[393547635,1762791918528,-1264.95397583,0.000154,2]
[393547636,1762791918557,-567.60693476,0.000154,2]
[393547637,1762791918599,-3097.51488642,0.000154,2]
[393547638,1762791918631,-3804.98022716,0.000154,2]
[393547639,1762791919628,6155.32511462,9e-05,2]
[393547640,1762791925005,377.57710643,0.0003013,120]
[393547641,1762791926263,435.86351743,0.000301,120]
[393547643,1762791927167,212.0,0.0003013,120]
[393547644,1762791927996,277.0,0.0003013,120]
[393547645,1762791928819,231.0,0.0003013,120]
[393547646,1762791929618,195.0,0.0003013,120]
[393547647,1762791930470,417.0,0.0003013,120]
[393547648,1762791931287,160.0,0.0003013,120]
[393547649,1762791932106,291.0,0.0003013,120]
[393547651,1762791937289,-96736.0,0.00018,2]
[393547652,1762791961081,10000.01,8e-05,2]
[393547653,1762791961105,4048.97735943,8e-05,2]
[393547654,1762791965445,5951.03264057,0.00011,2]
[393547655,1762791965469,3397.36868517,0.00011,2]
[393547656,1762791967211,195.0,0.000145,2]
[393547657,1762791967336,195.0,0.00017248,2]
[393547658,1762791968579,300.0,0.000145,2]
[393547659,1762791968774,445.37791582,0.00017248,2]
[393547660,1762791978743,-300.0,0.00017999,2]
[393547662,1762791989131,159.0,0.0003013,120]
[393547663,1762791989359,300.0,0.00027397,120]
[393547664,1762791989674,300.0,0.00030137,120]
[393547665,1762791989937,269.0,0.0003013,120]
[393547666,1762791990753,445.0,0.0003013,120]
[393547668,1762791991769,262.0,0.0003013,120]
[393547670,1762792004401,328.53066956,0.00017999,2]
[393547671,1762792015377,9671.47933044,0.000162,5]
[393547672,1762792015403,10000.01,0.000162,5]
[393547673,1762792015429,10000.01,0.000162,5]
[393547674,1762792015453,10000.01,0.000162,5]
[393547675,1762792015476,10000.01,0.000162,5]
[393547676,1762792015500,10000.01,0.000162,5]
[393547677,1762792015524,10000.01,0.000162,5]
[393547678,1762792015548,10000.01,0.000162,5]
[393547679,1762792015573,10000.01,0.000162,5]
[393547680,1762792015596,3772.27447293,0.000162,5]
[393547684,1762792024977,180.0,0.0003013,120]
[393547688,1762792027515,412.78347032,0.0002301,120]
[393547689,1762792027599,180.0,0.0003013,120]
[393547690,1762792029812,180.0,0.0003013,120]
[393547692,1762792032216,180.0,0.0003013,120]
[393547693,1762792033090,205.0,9.8e-05,2]
[393547694,1762792034481,179.0414247,0.0003013,120]
[393547696,1762792036778,5301.26719975,0.0001305,2]
[393547697,1762792037269,257.81412035,0.000101,2]
[393547699,1762792045427,150.0,0.0003013,120]
[393547704,1762792064323,383.94068318,0.00027,120]
[393547705,1762792068386,463.65420697,0.00013,2]
[393547706,1762792068411,1731.47346327,0.00013,2]
[393547730,1762792074823,8268.53653673,0.00015,2]
[393547731,1762792074853,10000.01,0.00015,2]
[393547732,1762792074880,10000.01,0.00015,2]
[393547735,1762792075072,10000.01,0.00015,2]
[393547736,1762792075099,10000.01,0.00015,2]
[393547737,1762792075126,10000.01,0.00015,2]
[393547738,1762792075152,10000.01,0.00015,2]
[393547740,1762792075183,10000.01,0.00015,2]
[393547741,1762792075210,10000.01,0.00015,2]
[393547742,1762792075236,10000.01,0.00015,2]
[393547743,1762792075264,1493844.67488538,0.00015,2]
[393547745,1762792075299,1299964.34589191,0.00015,2]
[393547746,1762792075333,951334.94239904,0.00015,2]
[393547748,1762792075437,504.84709722,0.0003,120]
[393547930,1762792096986,4932312.79619329,0.00030137,120]
[393547937,1762792097643,-176.99264016,0.00018,2]
[393548027,1762792107641,222.15795856,0.0001,2]
[393548091,1762792114653,341.74,0.0002,120]
[393548113,1762792116912,3968.23068613,0.00014999,2]
[393548126,1762792118106,447.17563208,0.00022,120]
[393548156,1762792121563,5809.62135531,0.00015,3]
[393548158,1762792121588,10000.01,0.00015,3]
[393548159,1762792121612,10000.01,0.00015,3]
[393548160,1762792121638,10000.01,0.00015,3]
[393548161,1762792121663,10000.01,0.00015,3]
[393548162,1762792121686,10000.01,0.00015,3]
[393548164,1762792121711,10000.01,0.00015,3]
[393548165,1762792121736,10000.01,0.00015,3]
[393548166,1762792121761,10000.01,0.00015,3]
[393548167,1762792121788,10000.01,0.00015,3]
[393548169,1762792121815,32780.4272577,0.00015,3]
[393548170,1762792121839,100000.0,0.00015,3]
[393548171,1762792121866,100000.0,0.00015,3]
[393548172,1762792121894,48665.05760096,0.00015,3]
[393548182,1762792122860,-223.66125096,0.00015,3]
[393548217,1762792126638,-373.28825375,0.00015,3]
[393548246,1762792129861,-394.40706214,0.00015,3]
[393548261,1762792131483,-245.16913965,0.00015,3]
[393548302,1762792135118,-278.68528979,0.00015,3]
[393548405,1762792139782,-5467.26339901,0.00015,3]
[393548408,1762792139892,-10000.01,0.00015,3]
[393548412,1762792140008,-10000.01,0.00015,3]
[393548416,1762792140147,-10000.01,0.00015,3]
[393548425,1762792140503,-10000.01,0.00015,3]
[393548431,1762792140687,-10000.01,0.00015,3]
[393548436,1762792140862,-10000.01,0.00015,3]
[393548440,1762792141002,-10000.01,0.00015,3]
[393548475,1762792142538,-260.0,0.00014999,2]
[393548477,1762792142575,-9480.01,0.00015,3]
[393548479,1762792142651,-10000.01,0.00015,3]
[393548483,1762792142758,-10000.01,0.00015,3]
[393548494,1762792143205,-370.48060137,0.00015,3]
[393548553,1762792145810,-10000.01,0.00015,3]
[393548557,1762792145933,-178.75068281,0.00015,3]
[393548561,1762792146038,-10000.01,0.00015,3]
[393548565,1762792146194,-10000.01,0.00015,3]
[393548569,1762792146320,-10000.01,0.00015,3]
[393548573,1762792146427,-10000.01,0.00015,3]
[393548577,1762792146559,-10000.01,0.00015,3]
[393548601,1762792147559,-295.69842264,0.00015,3]
[393548627,1762792148688,-10000.01,0.00015,3]
[393548630,1762792148809,-10000.01,0.00015,3]
[393548634,1762792148924,-10000.01,0.00015,3]
[393548638,1762792149062,-10000.01,0.00015,3]
[393548701,1762792151781,-10000.01,0.00015,3]
[393548707,1762792151997,-10000.01,0.00015,3]
[393548713,1762792152188,-10000.01,0.00015,3]
[393548718,1762792152349,-10000.01,0.00015,3]
[393548725,1762792152622,-10000.01,0.00015,3]
[393548727,1762792152652,-10000.01,0.00015,3]
[393548770,1762792154835,-10000.01,0.00015,3]
[393548771,1762792154853,-10000.01,0.00015,3]
[393548772,1762792154912,-10000.01,0.00015,3]
[393548776,1762792155067,-10000.01,0.00015,3]
[393548782,1762792155250,-300.85066371,0.00015,3]
[393548835,1762792157576,-190.55128239,0.00015,3]
[393548840,1762792157755,-10000.01,0.00015,3]
[393548846,1762792157987,-10000.01,0.00015,3]
[393548850,1762792158103,-10000.01,0.00015,3]
[393548854,1762792158236,-10000.01,0.00015,3]
[393548858,1762792158375,-10000.01,0.00015,3]
[393548861,1762792158510,-10000.01,0.00015,3]
[393548898,1762792160034,-151.0,0.00015,3]
[393548917,1762792160826,-10000.01,0.00015,3]
[393548921,1762792160958,-10000.01,0.00015,3]
[393548925,1762792161094,-10000.01,0.00015,3]
[393548931,1762792161264,-10000.01,0.00015,3]
[393548977,1762792163223,-327.07875279,0.00015,3]
[393548991,1762792163849,-10000.01,0.00015,3]
[393548998,1762792164107,-10000.01,0.00015,3]
[393549002,1762792164243,-10000.01,0.00015,3]
[393549006,1762792164375,-10000.01,0.00015,3]
[393549009,1762792164490,-10000.01,0.00015,3]
[393549062,1762792166787,-10000.01,0.00015,3]
[393549066,1762792166898,-10000.01,0.00015,3]
[393549070,1762792167028,-10000.01,0.00015,3]
[393549073,1762792167166,-10000.01,0.00015,3]
[393549076,1762792167294,-10000.01,0.00015,3]
[393549136,1762792169952,-10000.01,0.00015,3]
[393549141,1762792170147,-10000.01,0.00015,3]
[393549149,1762792170403,-10000.01,0.00015,3]
[393549152,1762792170529,-10000.01,0.00015,3]
[393549157,1762792170686,-10000.01,0.00015,3]
[393549210,1762792172875,-10000.01,0.00015,3]
[393549213,1762792172995,-10000.01,0.00015,3]
[393549217,1762792173096,-10000.01,0.00015,3]
[393549221,1762792173249,-10000.01,0.00015,3]
[393549225,1762792173375,-10000.01,0.00015,3]
[393549378,1762792181151,-194.44334265,0.00015,3]
[393549427,1762792183492,-287.35974557,0.00015,3]
[393549569,1762792189195,-336.03800854,0.00015,3]
[393549640,1762792191977,-82.34029574,0.00015,3]
[393549642,1762792192005,-9835.32940852,0.00015,3]
[393550002,1762792207030,-151.0,0.00017265,2]
[393550010,1762792207409,151.0,0.00016653,2]
[393550235,1762792217956,170.0,6.3e-07,2]
[393550340,1762792222679,-627.42786702,0.00017899,2]
[393550376,1762792224335,151.0,0.00016136,2]
[393550435,1762792226913,-195.0,0.00017935,2]
[393550437,1762792226954,-55.04093189,0.00017935,2]
[393550567,1762792232197,-244.95906811,0.00017935,2]
[393550568,1762792232207,-156.2487256,0.00017971,2]
[393550569,1762792232216,-213.24751281,0.00017971,2]
[393550570,1762792232226,-288.68941018,0.00017971,2]
[393550572,1762792232235,-195.0,0.00017974,2]
[393550573,1762792232245,-300.0,0.00017974,2]
[393550574,1762792232255,-300.0,0.00017974,2]
[393550575,1762792232264,-172.01265743,0.0001799,2]
[393550577,1762792232274,-172.01265743,0.0001799,2]
[393550578,1762792232283,-172.01265743,0.0001799,2]
[393550579,1762792232293,-1200.0,0.00017999,2]
[393550580,1762792232303,-618.0683131,0.00017999,2]
[393550582,1762792232312,-524.48747173,0.00017999,2]
[393550583,1762792232322,-115.03067704,0.00018,2]
[393550584,1762792232331,-2000.0,0.00018,2]
[393550585,1762792232341,-195.0,0.00018,2]
[393550586,1762792232350,-64131.14696177,0.00018,2]
[393550588,1762792232366,-9127.84833765,0.00018,2]
[393550698,1762792237194,-1044.55773092,0.00017971,2]
[393550734,1762792238144,-339.29195288,0.00018,2]
[393550735,1762792238160,-1604.34049284,0.00018,2]
[393550736,1762792238172,-2596651.53719214,0.00018,2]
[393550738,1762792238207,-5401.9262761,0.00018,2]
[393550749,1762792238730,-21875.79211154,0.00018,2]
[393550751,1762792238741,-902.46754833,0.00018,2]
[393550785,1762792240026,-2842.84914,0.00018,2]
[393550787,1762792240084,-564.89448107,0.00018,2]
[393550789,1762792240096,-51439.46156703,0.00018,2]
[393550792,1762792240176,-23.23980443,0.00018,2]
[393550793,1762792240206,-460.0,0.00018,2]
[393550795,1762792240217,-11304.20641662,0.00018,2]
[393550796,1762792240228,-440.2658949,0.00018,2]
[393550799,1762792240322,-2864.2587092,0.00018,2]
[393550801,1762792240384,-3775.91971424,0.00018,2]
[393550815,1762792241004,151.0,0.00016099,2]
[393550875,1762792243136,-30053.30091309,0.00018,2]
[393550882,1762792243251,-5145.0,0.00018,2]
[393550885,1762792243323,-302.68856602,0.00018,2]
[393550887,1762792243402,-3232.14748118,0.00018,2]
[393550889,1762792243419,-510.43405741,0.00018,2]
[393550913,1762792244351,224.10047289,0.00017971,2]
[393550960,1762792246313,-31468.49648309,0.00018,2]
[393550961,1762792246325,-423.81169871,0.00018,2]
[393550962,1762792246336,-2040.0,0.00018,2]
[393550964,1762792246432,-22133.00799675,0.00018,2]
[393550966,1762792246489,-462.26435536,0.00018,2]
[393550968,1762792246500,-445.66623539,0.00018,2]
[393550969,1762792246512,-5375.0,0.00018,2]
[393550970,1762792246523,-11862.35118402,0.00018,2]
[393550971,1762792246535,-1125.59477348,0.00018,2]
[393550972,1762792246546,-47408.14659482,0.00018,2]
[393550974,1762792246558,-13827.86437925,0.00018,2]
[393550975,1762792246569,-8448.20565989,0.00018,2]
[393551082,1762792250856,7535.79406527,0.00017971,2]
[393551083,1762792250879,6563.33671296,0.00017971,2]
[393551127,1762792252466,-500.0,0.00017999,2]
[393551128,1762792252496,-500.0,0.00017999,2]
[393551130,1762792252526,-487.57782148,0.00017999,2]
[393551132,1762792252556,-500.0,0.00017999,2]
[393551133,1762792252584,-500.0,0.00017999,2]
[393551135,1762792252613,-525.70011692,0.00017999,2]
[393551163,1762792254131,-247.52854389,0.00017999,2]
[393551217,1762792257395,151.0,0.00016101,2]
[393551221,1762792257544,-154.22585616,0.00017999,2]
[393551290,1762792260675,-98.24559995,0.00017999,2]
[393551292,1762792260702,-86.29271422,0.00017999,2]
[393551333,1762792262381,300.0,0.00017998,2]
[393551336,1762792262452,-261.87453195,0.00017999,2]
[393551399,1762792265309,-151.83275383,0.00017999,2]
[393551401,1762792265338,-199.11318271,0.00017999,2]
[393551458,1762792267846,500.0,0.00017999,2]
[393551463,1762792268074,500.0,0.00017999,2]
[393551465,1762792268116,-192.88209947,0.00017999,2]
[393551470,1762792268311,500.0,0.00017999,2]
[393551511,1762792270352,195.0,0.00017999,2]
[393551520,1762792270763,-108.00471782,0.00017999,2]
[393551522,1762792270791,-42.99528218,0.00017999,2]
[393551546,1762792271854,300.0,0.00017999,2]
[393551577,1762792273450,-301.20187829,0.00017999,2]
[393551594,1762792274111,151.0,0.00016105,2]
[393551804,1762792289058,465.89271054,0.00017962,2]
[393551805,1762792291317,151.0,0.00016127,2]
[393551806,1762792293519,721.64,0.0001764,2]
[393551808,1762792307626,37.92141266,0.00017999,2]
[393551809,1762792307666,462.07858734,0.00017999,2]
[393551810,1762792307855,500.0,0.00017999,2]
[393551811,1762792308006,151.0,0.00016177,2]
[393551812,1762792308103,500.0,0.00017999,2]
[393551815,1762792324542,151.0,0.00016203,2]
[393551820,1762792330549,151.0,0.00017989,2]
[393551821,1762792330970,300.0,0.00017999,2]
[393551822,1762792331187,151.0,0.00017989,2]
[393551824,1762792331781,151.0,0.00017989,2]
[393551826,1762792332480,151.0,0.00017989,2]
[393551827,1762792333531,200.0,0.00017989,2]
[393551828,1762792333564,151.0,0.00017989,2]
[393551829,1762792333661,500.0,0.00017999,2]
[393551830,1762792333731,151.0,0.00017989,2]
[393551831,1762792333867,500.0,0.00017999,2]
[393551832,1762792334109,500.0,0.00017999,2]
[393551833,1762792334373,553.83006228,0.00017999,2]
[393551834,1762792334402,151.0,0.00017989,2]
[393551835,1762792335006,151.0,0.00017989,2]
[393551836,1762792335623,4474.10135038,0.00017,2]
[393551837,1762792335646,10000.01,0.00017,2]
[393551838,1762792335669,5525.88864962,0.00017,2]
[393551839,1762792335785,151.0,0.00017989,2]
[393551840,1762792336409,151.0,0.00017989,2]
[393551841,1762792336575,151.0,0.00017989,2]
[393551843,1762792337009,151.0,0.00017989,2]
[393551844,1762792337050,151.0,0.00017989,2]
[393551845,1762792337468,151.0,0.00017997,2]
[393551846,1762792337642,151.0,0.00017989,2]
[393551847,1762792337671,151.0,0.00017989,2]
[393551848,1762792338236,151.0,0.00017989,2]
[393551849,1762792338274,151.0,0.00017989,2]
[393551850,1762792338855,151.0,0.00017989,2]
[393551851,1762792338892,273.56585454,0.00017989,2]
[393551852,1762792339463,151.0,0.00017989,2]
[393551853,1762792340071,151.0,0.00017989,2]
[393551855,1762792340651,151.0,0.00017989,2]
[393551856,1762792341294,151.0,0.00017989,2]
[393551857,1762792341922,151.0,0.00017989,2]
[393551858,1762792342543,151.0,0.00017989,2]
[393551859,1762792343024,-155.80283953,0.00017999,2]
[393551860,1762792343065,-586.05738361,0.00017999,2]
[393551861,1762792343101,-154.13159489,0.00017999,2]
[393551863,1762792343297,-432.06685806,0.00017999,2]
[393551864,1762792343331,-154.22585616,0.00017999,2]
[393551865,1762792343372,-500.0,0.00017999,2]
[393551866,1762792343408,-195.46498111,0.00017999,2]
[393551867,1762792343439,-497.0528853,0.00017999,2]
[393551868,1762792346059,151.0,0.00016123,2]
[393551869,1762792346927,4499.40520268,0.000179,2]
[393551870,1762792346950,5063.42753239,0.000179,2]
[393551874,1762792362822,151.0,0.00016233,2]
[393551875,1762792364152,696.37182062,0.00017962,2]
[393551876,1762792364877,192.45960678,0.00017962,2]
[393551877,1762792373662,500.0,0.00017999,2]
[393551878,1762792383078,-393.35047511,0.000246,120]
[393551879,1762792383104,-309.83556722,0.0002465,120]
[393551880,1762792383131,-215.75374547,0.00025,120]
[393551881,1762792383161,-1077.22,0.00026983,120]
[393551882,1762792383187,-270.41252695,0.00027,120]
[393551883,1762792383214,-300.0,0.00027397,120]
[393551884,1762792383246,-1077.22,0.00029436,120]
[393551885,1762792383288,-270.59989045,0.0003,120]
[393551886,1762792383315,-1029.88827101,0.0003,120]
[393551887,1762792383348,-4932312.79619329,0.00030137,120]
[393551888,1762792383377,-62742.9233305,0.00030137,120]
[393551889,1762792386730,4543.57615567,0.00017962,2]
[393551890,1762792390417,-4869569.87286279,0.00030137,120]
[393551891,1762792390444,-300.0,0.00030137,120]
[393551892,1762792395096,330.226418,0.00025,120]
[393551893,1762792402839,151.0,0.00017997,2]
[393551894,1762792403358,455.57831075,0.0003013,120]
[393551896,1762792419182,310.59514036,0.00017962,2]
[393551897,1762792420107,3455.00727657,0.00017962,2]
[393551898,1762792420134,10000.01,0.00017962,2]
[393551899,1762792420158,10000.01,0.00017962,2]
[393551900,1762792420180,10000.01,0.00017962,2]
[393551901,1762792420203,1777.93515093,0.00017962,2]
[393551902,1762792435835,1381.08504388,0.00017962,2]
[393551904,1762792453047,170.38678163,0.00017962,2]
[393551906,1762792484715,524.0,0.0002619,120]
[393551907,1762792485149,524.0,0.0002618,120]
[393551908,1762792485583,524.0,0.0002617,120]
[393551909,1762792486047,524.0,0.00029931,120]
[393551910,1762792486486,524.0,0.00029921,120]
[393551911,1762792486933,524.0,0.00029911,120]
[393551913,1762792495031,464.24788042,0.00017962,2]
[393551914,1762792502076,1200.0,0.00017999,2]
[393551915,1762792503815,246.27,0.0003013,120]
[393551916,1762792516317,445.16036995,0.00030136,120]
[393551924,1762792539235,1955.35199834,0.00017962,2]
[393551926,1762792542150,156.1678191,0.00017962,2]
[393551927,1762792547083,2894.8353257,0.00017962,2]
[393551928,1762792547109,10000.01,0.00017962,2]
[393551929,1762792547136,10000.01,0.00017962,2]
[393551930,1762792547164,10000.01,0.00017962,2]
[393551931,1762792547189,5867.64669507,0.00017962,2]
[393551932,1762792549536,207.0634269,0.00017962,2]
[393551933,1762792563964,500.0,0.00017999,2]
[393551934,1762792564208,500.0,0.00017999,2]
[393551935,1762792564459,628.72901669,0.00017999,2]
[393551941,1762792602767,315.19124194,0.00027397,120]
[393551942,1762792622805,508.85013673,0.00017999,2]
[393551944,1762792625387,309.49858694,0.00017962,2]
[393551946,1762792632860,200.0,0.00017999,2]
[393551947,1762792636335,151.0,0.00017999,2]
[393551948,1762792637013,151.0,0.00017999,2]
[393551949,1762792637620,151.0,0.00017999,2]
[393551950,1762792638462,151.0,0.00017999,2]
[393551951,1762792639222,151.0,0.00017999,2]
[393551952,1762792639659,151.0,0.00017999,2]
[393551953,1762792640249,151.0,0.00017999,2]
[393551954,1762792640850,151.0,0.00017999,2]
[393551955,1762792641113,-300.0,0.00017999,2]
[393551956,1762792641143,-195.0,0.00017999,2]
[393551957,1762792641172,-300.0,0.00017999,2]
[393551958,1762792641462,151.0,0.00017999,2]
[393551959,1762792642054,151.0,0.00017999,2]
[393551961,1762792642657,151.0,0.00017999,2]
[393551966,1762792686395,-195.0,0.00018,2]
[393551967,1762792701435,-300.0,0.00018,2]
[393551968,1762792701468,-250.0,0.00018,2]
[393551970,1762792739081,170.3867816,0.00017995,2]
[393551972,1762792755633,206.3323913,0.00017995,2]
[393551973,1762792757590,260.9171715,0.00017999,2]
[393551974,1762792764863,466.54405779,0.00027397,120]
[393551980,1762792791182,150.0,0.00017999,2]
[393551981,1762792801894,1200.0,0.00017999,2]
[393551982,1762792805820,1195.35,0.0001799,2]
[393551983,1762792806030,1195.35,0.0001799,2]
[393551984,1762792806240,1195.35,0.0001799,2]
[393551985,1762792806462,1195.35,0.0001799,2]
[393551986,1762792807230,1195.35,0.0001799,2]
[393551988,1762792811521,602.73343289,0.0001799,2]
[393551989,1762792811592,332.89022271,0.0001799,2]
[393551990,1762792811614,269.84321018,0.0001799,2]
[393551991,1762792811674,602.73343289,0.0001799,2]
[393551992,1762792816385,521.0,0.00027664,120]
[393551993,1762792817828,521.0,0.00029047,120]
[393552001,1762792850890,500.0,0.00017999,2]
[393552002,1762792851137,500.0,0.00017999,2]
[393552003,1762792861012,500.0,0.00017999,2]
[393552005,1762792887098,206.33239128,0.00017995,2]
[393552006,1762792893492,1022.847,0.0001764,2]
[393552007,1762792907873,500.0,0.000179,2]
[393552009,1762792940648,151.0,0.00017999,2]
[393552010,1762792941295,151.0,0.00017999,2]
[393552011,1762792941883,151.0,0.00017999,2]
[393552012,1762792942559,151.0,0.00017999,2]
[393552013,1762792943172,151.0,0.00017999,2]
[393552014,1762792943810,151.0,0.00017999,2]
[393552015,1762792944486,151.0,0.00017999,2]
[393552016,1762792945092,151.0,0.00017999,2]
[393552017,1762792946264,151.0,0.00017999,2]
[393552018,1762792946931,151.0,0.00017999,2]